[Event "Titled Tuesday Blitz December 27 Late 2022"]
[White "Janaszak, Dawid"]
[Black "Vasquez Schroeder, Rodrigo"]
[WhiteFideId "1119206"]
[BlackFideId "3400042"]
[WhiteElo "2316"]
[BlackElo "2524"]
[Result "0-1"]
[Round "10"]
[TimeControl "180+2"]
[Date "2022.12.27"]
[WhiteClock "0:00:04"]
[BlackClock "0:01:11"]

1. e4 {[%clk 0:03:00]}  c5 {[%clk 0:02:58]} 2. Nc3 {[%clk 0:03:00]}  Nc6 {[%clk 0:02:53]} 3. Bb5 {[%clk 0:02:59]}  Nd4 {[%clk 0:02:53]} 4. Nf3 {[%clk 0:02:59]}  a6 {[%clk 0:02:50]} 5. Bd3 {[%clk 0:02:59]}  Nc6 {[%clk 0:02:49]} 6. O-O {[%clk 0:02:54]}  g6 {[%clk 0:02:49]} 7. Re1 {[%clk 0:02:46]}  Bg7 {[%clk 0:02:48]} 8. b3 {[%clk 0:02:46]}  d6 {[%clk 0:02:47]} 9. Bb2 {[%clk 0:02:45]}  e6 {[%clk 0:02:47]} 10. Bf1 {[%clk 0:02:41]}  Nge7 {[%clk 0:02:46]} 11. d3 {[%clk 0:02:18]}  O-O {[%clk 0:02:42]} 12. Qd2 {[%clk 0:02:15]}  b5 {[%clk 0:02:37]} 13. Nd1 {[%clk 0:02:15]}  e5 {[%clk 0:02:33]} 14. c3 {[%clk 0:02:08]}  Qb6 {[%clk 0:02:32]} 15. Ne3 {[%clk 0:02:08]}  h6 {[%clk 0:02:27]} 16. h4 {[%clk 0:01:58]}  Be6 {[%clk 0:02:24]} 17. h5 {[%clk 0:01:50]}  g5 {[%clk 0:02:21]} 18. g4 {[%clk 0:01:46]}  Rad8 {[%clk 0:02:14]} 19. Nf5 {[%clk 0:01:45]}  Bxf5 {[%clk 0:02:00]} 20. gxf5 {[%clk 0:01:38]}  d5 {[%clk 0:01:59]} 21. Qe3 {[%clk 0:01:24]}  d4 {[%clk 0:01:55]} 22. cxd4 {[%clk 0:01:23]}  exd4 {[%clk 0:01:55]} 23. Qd2 {[%clk 0:01:21]}  Ne5 {[%clk 0:01:55]} 24. Be2 {[%clk 0:01:09]}  Nxf3+ {[%clk 0:01:52]} 25. Bxf3 {[%clk 0:01:09]}  Nc6 {[%clk 0:01:53]} 26. Be2 {[%clk 0:00:59]}  Be5 {[%clk 0:01:52]} 27. Rf1 {[%clk 0:00:47]}  Qc7 {[%clk 0:01:49]} 28. Rac1 {[%clk 0:00:37]}  Bf4 {[%clk 0:01:48]} 29. Qd1 {[%clk 0:00:37]}  Bxc1 {[%clk 0:01:45]} 30. Bxc1 {[%clk 0:00:37]}  Ne5 {[%clk 0:01:40]} 31. f4 {[%clk 0:00:36]}  gxf4 {[%clk 0:01:40]} 32. Bxf4 {[%clk 0:00:36]}  Qd6 {[%clk 0:01:39]} 33. Kh1 {[%clk 0:00:31]}  Kh7 {[%clk 0:01:39]} 34. Qe1 {[%clk 0:00:23]}  Rg8 {[%clk 0:01:39]} 35. Qh4 {[%clk 0:00:23]}  f6 {[%clk 0:01:37]} 36. Rg1 {[%clk 0:00:11]}  Rxg1+ {[%clk 0:01:36]} 37. Kxg1 {[%clk 0:00:11]}  Rg8+ {[%clk 0:01:35]} 38. Kf1 {[%clk 0:00:12]}  Qe7 {[%clk 0:01:31]} 39. Bd2 {[%clk 0:00:10]}  Qg7 {[%clk 0:01:29]} 40. Qf2 {[%clk 0:00:08]}  Rd8 {[%clk 0:01:22]} 41. Ke1 {[%clk 0:00:08]}  c4 {[%clk 0:01:21]} 42. dxc4 {[%clk 0:00:05]}  bxc4 {[%clk 0:01:19]} 43. Ba5 {[%clk 0:00:05]}  Rd7 {[%clk 0:01:16]} 44. bxc4 {[%clk 0:00:04]}  d3 {[%clk 0:01:16]} 45. Bd1 {[%clk 0:00:04]}  d2+ {[%clk 0:01:16]} 46. Kf1 {[%clk 0:00:04]}  Nxc4 {[%clk 0:01:14]} 47. Bc3 {[%clk 0:00:03]}  Qg5 {[%clk 0:01:14]} 48. Ke2 {[%clk 0:00:03]}  Qg4+ {[%clk 0:01:13]} 49. Qf3 {[%clk 0:00:03]}  Qxf3+ {[%clk 0:01:11]} 50. Kxf3 {[%clk 0:00:04]}  Rd3+ {[%clk 0:01:11]} 0-1


[Site "https://www.chess.com"]

[Event "Titled Tuesday Blitz December 27 Late 2022"]
[White "Kleiman, Jake"]
[Black "Yuan, Qingyu"]
[WhiteFideId "2020041"]
[BlackFideId "8609772"]
[WhiteElo "2399"]
[BlackElo "2373"]
[Result "1-0"]
[Round "10"]
[TimeControl "180+2"]
[Date "2022.12.27"]
[WhiteClock "0:00:20"]
[BlackClock "0:00:04"]

1. e4 {[%clk 0:03:00]}  e5 {[%clk 0:03:00]} 2. Nf3 {[%clk 0:03:00]}  Nc6 {[%clk 0:03:00]} 3. Bc4 {[%clk 0:03:01]}  Bc5 {[%clk 0:03:00]} 4. d3 {[%clk 0:03:02]}  Nf6 {[%clk 0:03:01]} 5. c3 {[%clk 0:03:03]}  O-O {[%clk 0:03:01]} 6. Bb3 {[%clk 0:03:03]}  d5 {[%clk 0:03:00]} 7. exd5 {[%clk 0:03:03]}  Nxd5 {[%clk 0:03:01]} 8. O-O {[%clk 0:03:04]}  Nb6 {[%clk 0:02:26]} 9. Re1 {[%clk 0:03:03]}  Bd6 {[%clk 0:02:23]} 10. Nbd2 {[%clk 0:02:57]}  Bf5 {[%clk 0:02:12]} 11. Ne4 {[%clk 0:02:57]}  Kh8 {[%clk 0:02:07]} 12. Bg5 {[%clk 0:02:54]}  f6 {[%clk 0:02:07]} 13. Be3 {[%clk 0:02:55]}  h6 {[%clk 0:02:04]} 14. Nh4 {[%clk 0:02:41]}  Bh7 {[%clk 0:02:04]} 15. Qh5 {[%clk 0:02:42]}  Qe8 {[%clk 0:02:03]} 16. Qxe8 {[%clk 0:02:35]}  Raxe8 {[%clk 0:02:03]} 17. a4 {[%clk 0:02:29]}  f5 {[%clk 0:01:50]} 18. Nxd6 {[%clk 0:02:29]}  cxd6 {[%clk 0:01:50]} 19. a5 {[%clk 0:02:29]}  Nc8 {[%clk 0:01:42]} 20. a6 {[%clk 0:02:03]}  b5 {[%clk 0:01:35]} 21. Nf3 {[%clk 0:01:44]}  f4 {[%clk 0:01:33]} 22. Bd2 {[%clk 0:01:44]}  Bxd3 {[%clk 0:01:33]} 23. h4 {[%clk 0:01:32]}  Nb6 {[%clk 0:01:30]} 24. Rad1 {[%clk 0:01:20]}  e4 {[%clk 0:01:24]} 25. Nd4 {[%clk 0:01:14]}  Nxd4 {[%clk 0:01:22]} 26. cxd4 {[%clk 0:01:15]}  Bc4 {[%clk 0:01:04]} 27. Bc2 {[%clk 0:01:15]}  Bd5 {[%clk 0:00:57]} 28. Bb4 {[%clk 0:01:05]}  Rf6 {[%clk 0:00:57]} 29. Re2 {[%clk 0:01:00]}  g5 {[%clk 0:00:52]} 30. Rde1 {[%clk 0:00:57]}  Rfe6 {[%clk 0:00:52]} 31. Bb1 {[%clk 0:00:32]}  Nd7 {[%clk 0:00:50]} 32. f3 {[%clk 0:00:27]}  exf3 {[%clk 0:00:41]} 33. Rxe6 {[%clk 0:00:27]}  Rxe6 {[%clk 0:00:42]} 34. Rxe6 {[%clk 0:00:27]}  Bxe6 {[%clk 0:00:43]} 35. gxf3 {[%clk 0:00:28]}  d5 {[%clk 0:00:22]} 36. hxg5 {[%clk 0:00:27]}  hxg5 {[%clk 0:00:23]} 37. Bd3 {[%clk 0:00:27]}  Nb8 {[%clk 0:00:14]} 38. Bxb5 {[%clk 0:00:26]}  Bc8 {[%clk 0:00:15]} 39. Be7 {[%clk 0:00:25]}  g4 {[%clk 0:00:05]} 40. Bd6 {[%clk 0:00:20]}  Nxa6 {[%clk 0:00:04]} 41. fxg4 {[%clk 0:00:20]}  f3 {[%clk 0:00:03]} 42. Kf2 {[%clk 0:00:20]}  Kg7 {[%clk 0:00:03]} 43. Kxf3 {[%clk 0:00:20]}  Kf6 {[%clk 0:00:03]} 44. Kf4 {[%clk 0:00:20]}  Ke6 {[%clk 0:00:01]} 45. Be5 {[%clk 0:00:20]}  Nb4 {[%clk 0:00:02]} 46. g5 {[%clk 0:00:19]}  a6 {[%clk 0:00:02]} 47. Be2 {[%clk 0:00:19]}  Nc6 {[%clk 0:00:02]} 48. Bg4+ {[%clk 0:00:19]}  Ke7 {[%clk 0:00:02]} 49. Bxc8 {[%clk 0:00:20]}  Na5 {[%clk 0:00:02]} 50. Bxa6 {[%clk 0:00:20]}  Nc6 {[%clk 0:00:02]} 51. g6 {[%clk 0:00:19]}  Nd8 {[%clk 0:00:02]} 52. Kf5 {[%clk 0:00:19]}  Nc6 {[%clk 0:00:02]} 53. g7 {[%clk 0:00:19]}  Kf7 {[%clk 0:00:02]} 54. Bc8 {[%clk 0:00:19]}  Ne7+ {[%clk 0:00:03]} 55. Kg5 {[%clk 0:00:19]}  Nxc8 {[%clk 0:00:04]} 56. b4 {[%clk 0:00:19]}  Na7 {[%clk 0:00:03]} 57. Kf5 {[%clk 0:00:19]}  Nb5 {[%clk 0:00:04]} 58. Kf4 {[%clk 0:00:18]}  Nc3 {[%clk 0:00:03]} 59. Ke3 {[%clk 0:00:18]}  Nb5 {[%clk 0:00:03]} 60. Kd3 {[%clk 0:00:18]}  Na3 {[%clk 0:00:02]} 61. Kc3 {[%clk 0:00:18]}  Nc4 {[%clk 0:00:02]} 62. Kb3 {[%clk 0:00:19]}  Nxe5 {[%clk 0:00:02]} 63. dxe5 {[%clk 0:00:20]}  Kxg7 {[%clk 0:00:03]} 64. Kc3 {[%clk 0:00:20]}  Kf7 {[%clk 0:00:03]} 65. Kd4 {[%clk 0:00:20]}  Ke6 {[%clk 0:00:03]} 66. b5 {[%clk 0:00:21]}  Kd7 {[%clk 0:00:03]} 67. Kxd5 {[%clk 0:00:16]}  Kc7 {[%clk 0:00:04]} 68. e6 {[%clk 0:00:17]}  Kd8 {[%clk 0:00:02]} 69. Kd6 {[%clk 0:00:17]}  Kc8 {[%clk 0:00:02]} 70. e7 {[%clk 0:00:18]}  Kb7 {[%clk 0:00:03]} 71. e8=Q {[%clk 0:00:19]}  Ka7 {[%clk 0:00:03]} 72. Qc6 {[%clk 0:00:18]}  Kb8 {[%clk 0:00:04]} 73. Qd7 {[%clk 0:00:19]}  Ka8 {[%clk 0:00:04]} 74. Kc6 {[%clk 0:00:20]} 1-0


[Site "https://www.chess.com"]

[Event "Titled Tuesday Blitz December 27 Late 2022"]
[White "Ladan, Nicholas"]
[Black "Solon, Nathan"]
[WhiteFideId "30918855"]
[BlackFideId "2017229"]
[WhiteElo "2228"]
[BlackElo "2306"]
[Result "0-1"]
[Round "10"]
[TimeControl "180+2"]
[Date "2022.12.27"]
[WhiteClock "0:00:01"]
[BlackClock "0:01:13"]

1. e3 {[%clk 0:03:00]}  c5 {[%clk 0:02:57]} 2. d4 {[%clk 0:03:00]}  Nf6 {[%clk 0:02:57]} 3. c4 {[%clk 0:02:55]}  g6 {[%clk 0:02:52]} 4. Nc3 {[%clk 0:02:55]}  Bg7 {[%clk 0:02:52]} 5. Nf3 {[%clk 0:02:55]}  O-O {[%clk 0:02:51]} 6. Be2 {[%clk 0:02:55]}  cxd4 {[%clk 0:02:49]} 7. Nxd4 {[%clk 0:02:49]}  Nc6 {[%clk 0:02:49]} 8. O-O {[%clk 0:02:43]}  d6 {[%clk 0:02:48]} 9. e4 {[%clk 0:02:38]}  Nxd4 {[%clk 0:02:45]} 10. Qxd4 {[%clk 0:02:38]}  Be6 {[%clk 0:02:45]} 11. Qe3 {[%clk 0:02:12]}  Rc8 {[%clk 0:02:42]} 12. Qxa7 {[%clk 0:02:04]}  Bxc4 {[%clk 0:02:33]} 13. Bxc4 {[%clk 0:01:57]}  Rxc4 {[%clk 0:02:34]} 14. Re1 {[%clk 0:01:56]}  Qa8 {[%clk 0:02:28]} 15. Be3 {[%clk 0:01:43]}  Nxe4 {[%clk 0:02:22]} 16. Nxe4 {[%clk 0:01:31]}  Rxe4 {[%clk 0:02:23]} 17. Qb6 {[%clk 0:01:31]}  Qa6 {[%clk 0:02:17]} 18. Qxa6 {[%clk 0:01:11]}  bxa6 {[%clk 0:02:18]} 19. Rab1 {[%clk 0:01:11]}  Rc8 {[%clk 0:02:14]} 20. Re2 {[%clk 0:01:04]}  Rec4 {[%clk 0:02:12]} 21. Kf1 {[%clk 0:00:41]}  e6 {[%clk 0:02:01]} 22. b4 {[%clk 0:00:24]}  d5 {[%clk 0:01:49]} 23. Bc5 {[%clk 0:00:21]}  e5 {[%clk 0:01:42]} 24. a4 {[%clk 0:00:17]}  e4 {[%clk 0:01:39]} 25. Ke1 {[%clk 0:00:15]}  f5 {[%clk 0:01:39]} 26. f3 {[%clk 0:00:15]}  d4 {[%clk 0:01:33]} 27. fxe4 {[%clk 0:00:09]}  d3 {[%clk 0:01:33]} 28. Re3 {[%clk 0:00:09]}  fxe4 {[%clk 0:01:31]} 29. Kd1 {[%clk 0:00:06]}  Rc7 {[%clk 0:01:22]} 30. Rc1 {[%clk 0:00:05]}  Rxc1+ {[%clk 0:01:18]} 31. Kxc1 {[%clk 0:00:06]}  Bh6 {[%clk 0:01:18]} 32. Kd2 {[%clk 0:00:04]}  Kf7 {[%clk 0:01:16]} 33. g4 {[%clk 0:00:02]}  Ke6 {[%clk 0:01:14]} 34. h4 {[%clk 0:00:03]}  Bf4 {[%clk 0:01:13]} 35. g5 {[%clk 0:00:02]}  Kd5 {[%clk 0:01:13]} 36. Ba7 {[%clk 0:00:01]} 0-1


[Site "https://www.chess.com"]

[Event "Titled Tuesday Blitz December 27 Late 2022"]
[White "Melkumyan, Hrant"]
[Black "Jaracz, Pawel"]
[WhiteFideId "13302485"]
[BlackFideId "1102222"]
[WhiteElo "2645"]
[BlackElo "2467"]
[Result "1-0"]
[Round "10"]
[TimeControl "180+2"]
[Date "2022.12.27"]
[WhiteClock "0:00:12"]
[BlackClock "0:00:01"]

1. d4 {[%clk 0:02:50]}  Nf6 {[%clk 0:02:59]} 2. c4 {[%clk 0:02:42]}  e6 {[%clk 0:02:59]} 3. Bf4 {[%clk 0:02:41]}  Bb4+ {[%clk 0:02:58]} 4. Nc3 {[%clk 0:02:35]}  b6 {[%clk 0:02:56]} 5. Rc1 {[%clk 0:02:25]}  Bb7 {[%clk 0:02:55]} 6. Nf3 {[%clk 0:02:15]}  Ne4 {[%clk 0:02:50]} 7. Bd2 {[%clk 0:02:12]}  Bxc3 {[%clk 0:02:48]} 8. Bxc3 {[%clk 0:02:11]}  d6 {[%clk 0:02:46]} 9. d5 {[%clk 0:02:02]}  e5 {[%clk 0:02:43]} 10. Nd2 {[%clk 0:01:54]}  Nxd2 {[%clk 0:02:31]} 11. Qxd2 {[%clk 0:01:48]}  O-O {[%clk 0:02:30]} 12. b4 {[%clk 0:01:45]}  Nd7 {[%clk 0:02:30]} 13. e3 {[%clk 0:01:43]}  f5 {[%clk 0:02:24]} 14. Bd3 {[%clk 0:01:40]}  Qh4 {[%clk 0:02:19]} 15. O-O {[%clk 0:01:38]}  Rae8 {[%clk 0:02:16]} 16. f4 {[%clk 0:01:37]}  Qh5 {[%clk 0:01:52]} 17. Rce1 {[%clk 0:01:27]}  Nf6 {[%clk 0:01:47]} 18. h3 {[%clk 0:01:25]}  Nd7 {[%clk 0:01:41]} 19. Rf3 {[%clk 0:01:08]}  Rf7 {[%clk 0:01:15]} 20. Rg3 {[%clk 0:01:08]}  h6 {[%clk 0:00:47]} 21. Rf1 {[%clk 0:01:00]}  Bc8 {[%clk 0:00:45]} 22. Kh2 {[%clk 0:00:59]}  Nf6 {[%clk 0:00:41]} 23. Kg1 {[%clk 0:00:47]}  Qh4 {[%clk 0:00:23]} 24. Qf2 {[%clk 0:00:47]}  Kh8 {[%clk 0:00:21]} 25. fxe5 {[%clk 0:00:39]}  dxe5 {[%clk 0:00:20]} 26. Qe1 {[%clk 0:00:24]}  Ne4 {[%clk 0:00:20]} 27. Rgf3 {[%clk 0:00:14]}  Qxe1 {[%clk 0:00:18]} 28. Bxe1 {[%clk 0:00:15]}  Ng5 {[%clk 0:00:18]} 29. R3f2 {[%clk 0:00:15]}  g6 {[%clk 0:00:15]} 30. Bc3 {[%clk 0:00:13]}  Kg8 {[%clk 0:00:15]} 31. c5 {[%clk 0:00:13]}  bxc5 {[%clk 0:00:13]} 32. bxc5 {[%clk 0:00:14]}  Bb7 {[%clk 0:00:11]} 33. h4 {[%clk 0:00:14]}  Nh7 {[%clk 0:00:10]} 34. d6 {[%clk 0:00:14]}  cxd6 {[%clk 0:00:09]} 35. cxd6 {[%clk 0:00:15]}  Bd5 {[%clk 0:00:09]} 36. Rd1 {[%clk 0:00:12]}  Be6 {[%clk 0:00:09]} 37. Bb5 {[%clk 0:00:12]}  Rd8 {[%clk 0:00:09]} 38. Ba5 {[%clk 0:00:12]}  Rb8 {[%clk 0:00:09]} 39. d7 {[%clk 0:00:12]}  Bxd7 {[%clk 0:00:05]} 40. Bxd7 {[%clk 0:00:13]}  Kg7 {[%clk 0:00:04]} 41. Be6 {[%clk 0:00:13]}  Re7 {[%clk 0:00:03]} 42. Bb3 {[%clk 0:00:13]}  Nf6 {[%clk 0:00:03]} 43. Rfd2 {[%clk 0:00:13]}  Rbb7 {[%clk 0:00:02]} 44. Bd8 {[%clk 0:00:12]}  Red7 {[%clk 0:00:01]} 45. Bxf6+ {[%clk 0:00:12]} 1-0


[Site "https://www.chess.com"]

[Event "Titled Tuesday Blitz December 27 Late 2022"]
[White "Movahed, Sina"]
[Black "Martinez Alcantara, Jose Eduardo"]
[WhiteFideId "42520835"]
[BlackFideId "3805662"]
[WhiteElo "2340"]
[BlackElo "2619"]
[Result "1/2-1/2"]
[Round "10"]
[TimeControl "180+2"]
[Date "2022.12.27"]
[WhiteClock "0:00:07"]
[BlackClock "0:00:05"]

1. e4 {[%clk 0:03:00]}  e5 {[%clk 0:03:00]} 2. Nf3 {[%clk 0:03:00]}  Nc6 {[%clk 0:03:00]} 3. Bb5 {[%clk 0:02:59]}  a6 {[%clk 0:02:59]} 4. Ba4 {[%clk 0:02:57]}  Nf6 {[%clk 0:02:59]} 5. O-O {[%clk 0:02:56]}  Be7 {[%clk 0:03:00]} 6. d3 {[%clk 0:02:54]}  b5 {[%clk 0:02:59]} 7. Bb3 {[%clk 0:02:55]}  d6 {[%clk 0:02:59]} 8. c3 {[%clk 0:02:53]}  O-O {[%clk 0:02:58]} 9. h3 {[%clk 0:02:52]}  Na5 {[%clk 0:02:58]} 10. Bc2 {[%clk 0:02:52]}  c5 {[%clk 0:02:59]} 11. Re1 {[%clk 0:02:52]}  h6 {[%clk 0:02:59]} 12. Nbd2 {[%clk 0:02:53]}  Nc6 {[%clk 0:02:59]} 13. Nf1 {[%clk 0:02:53]}  Re8 {[%clk 0:02:59]} 14. a4 {[%clk 0:02:50]}  Rb8 {[%clk 0:02:58]} 15. axb5 {[%clk 0:02:49]}  axb5 {[%clk 0:02:59]} 16. Ng3 {[%clk 0:02:45]}  Bf8 {[%clk 0:03:00]} 17. Be3 {[%clk 0:02:43]}  Be6 {[%clk 0:02:55]} 18. d4 {[%clk 0:02:43]}  Bd7 {[%clk 0:02:36]} 19. d5 {[%clk 0:02:36]}  Ne7 {[%clk 0:02:35]} 20. Ra6 {[%clk 0:02:33]}  Ng6 {[%clk 0:02:34]} 21. Qd2 {[%clk 0:02:32]}  Bc8 {[%clk 0:02:33]} 22. Ra2 {[%clk 0:02:27]}  Bd7 {[%clk 0:02:32]} 23. b4 {[%clk 0:02:26]}  Ra8 {[%clk 0:02:26]} 24. Rea1 {[%clk 0:02:26]}  Rxa2 {[%clk 0:02:26]} 25. Rxa2 {[%clk 0:02:27]}  Qc7 {[%clk 0:02:24]} 26. Bd3 {[%clk 0:02:15]}  Rc8 {[%clk 0:02:17]} 27. Ra5 {[%clk 0:02:12]}  Rb8 {[%clk 0:01:54]} 28. Qb2 {[%clk 0:02:06]}  Nf4 {[%clk 0:01:49]} 29. Bf1 {[%clk 0:02:03]}  g5 {[%clk 0:01:31]} 30. Nd2 {[%clk 0:01:57]}  h5 {[%clk 0:01:26]} 31. Qa2 {[%clk 0:01:53]}  h4 {[%clk 0:01:23]} 32. Ne2 {[%clk 0:01:53]}  Kg7 {[%clk 0:01:15]} 33. bxc5 {[%clk 0:01:35]}  dxc5 {[%clk 0:01:16]} 34. Nc1 {[%clk 0:01:34]}  c4 {[%clk 0:01:10]} 35. Ra7 {[%clk 0:01:34]}  Rb7 {[%clk 0:01:10]} 36. Ra6 {[%clk 0:01:30]}  Bc5 {[%clk 0:01:06]} 37. Qc2 {[%clk 0:01:19]}  Bxe3 {[%clk 0:01:03]} 38. fxe3 {[%clk 0:01:19]}  N4h5 {[%clk 0:01:03]} 39. Nf3 {[%clk 0:01:15]}  Ra7 {[%clk 0:00:42]} 40. Rxa7 {[%clk 0:01:07]}  Qxa7 {[%clk 0:00:43]} 41. Kf2 {[%clk 0:01:07]}  Ng3 {[%clk 0:00:35]} 42. Nxg5 {[%clk 0:01:07]}  Qa1 {[%clk 0:00:23]} 43. Be2 {[%clk 0:01:01]}  Kg6 {[%clk 0:00:21]} 44. Nf3 {[%clk 0:00:57]}  Nfxe4+ {[%clk 0:00:22]} 45. Ke1 {[%clk 0:00:56]}  Kf6 {[%clk 0:00:17]} 46. Nxh4 {[%clk 0:00:51]}  Nxc3 {[%clk 0:00:12]} 47. Bf3 {[%clk 0:00:38]}  b4 {[%clk 0:00:10]} 48. Kf2 {[%clk 0:00:33]}  Nf5 {[%clk 0:00:06]} 49. Nxf5 {[%clk 0:00:27]}  Bxf5 {[%clk 0:00:07]} 50. Qd2 {[%clk 0:00:24]}  b3 {[%clk 0:00:04]} 51. d6 {[%clk 0:00:20]}  b2 {[%clk 0:00:05]} 52. d7 {[%clk 0:00:16]}  Bxd7 {[%clk 0:00:03]} 53. Qd6+ {[%clk 0:00:07]}  Be6 {[%clk 0:00:04]} 54. Qd8+ {[%clk 0:00:06]}  Kg6 {[%clk 0:00:04]} 55. Qg8+ {[%clk 0:00:07]}  Kf6 {[%clk 0:00:05]} 56. Qd8+ {[%clk 0:00:07]}  Kg6 {[%clk 0:00:05]} 57. Qg8+ {[%clk 0:00:07]}  Kf6 {[%clk 0:00:05]} 58. Qd8+ {[%clk 0:00:07]} 1/2-1/2


[Site "https://www.chess.com"]

[Event "Titled Tuesday Blitz December 27 Late 2022"]
[White "Novikova, Galina"]
[Black "Krasteva, Beloslava"]
[WhiteFideId "4157095"]
[BlackFideId "2922029"]
[WhiteElo "2073"]
[BlackElo "2220"]
[Result "1-0"]
[Round "10"]
[TimeControl "180+2"]
[Date "2022.12.27"]
[WhiteClock "0:00:14"]
[BlackClock "0:00:01"]

1. e4 {[%clk 0:02:59]}  c5 {[%clk 0:02:58]} 2. Nf3 {[%clk 0:02:57]}  Nc6 {[%clk 0:02:49]} 3. d4 {[%clk 0:02:58]}  cxd4 {[%clk 0:02:48]} 4. Nxd4 {[%clk 0:02:59]}  Nf6 {[%clk 0:02:46]} 5. Nc3 {[%clk 0:02:59]}  d6 {[%clk 0:02:39]} 6. h3 {[%clk 0:02:56]}  e6 {[%clk 0:02:35]} 7. g4 {[%clk 0:02:56]}  Be7 {[%clk 0:02:35]} 8. Bg2 {[%clk 0:02:56]}  a6 {[%clk 0:02:31]} 9. O-O {[%clk 0:02:54]}  Nd7 {[%clk 0:02:30]} 10. Kh1 {[%clk 0:02:47]}  O-O {[%clk 0:02:29]} 11. f4 {[%clk 0:02:44]}  Nxd4 {[%clk 0:02:27]} 12. Qxd4 {[%clk 0:02:42]}  e5 {[%clk 0:02:27]} 13. Qf2 {[%clk 0:02:34]}  exf4 {[%clk 0:02:27]} 14. Bxf4 {[%clk 0:02:33]}  Ne5 {[%clk 0:02:27]} 15. Rad1 {[%clk 0:02:32]}  Bh4 {[%clk 0:02:09]} 16. Qe2 {[%clk 0:02:30]}  Qf6 {[%clk 0:01:57]} 17. Nd5 {[%clk 0:02:15]}  Qg6 {[%clk 0:01:57]} 18. Qd2 {[%clk 0:01:37]}  Be6 {[%clk 0:01:41]} 19. Bg3 {[%clk 0:01:24]}  Bxd5 {[%clk 0:01:38]} 20. Bxh4 {[%clk 0:01:24]}  Bxe4 {[%clk 0:01:36]} 21. Qxd6 {[%clk 0:01:20]}  Bxg2+ {[%clk 0:01:35]} 22. Kxg2 {[%clk 0:01:20]}  Qe4+ {[%clk 0:01:36]} 23. Kg3 {[%clk 0:01:10]}  Qe3+ {[%clk 0:01:35]} 24. Kg2 {[%clk 0:01:06]}  Qe4+ {[%clk 0:01:23]} 25. Kg3 {[%clk 0:01:05]}  Nc4 {[%clk 0:01:11]} 26. Qd4 {[%clk 0:00:55]}  Qc6 {[%clk 0:00:46]} 27. b3 {[%clk 0:00:49]}  Nb6 {[%clk 0:00:39]} 28. c4 {[%clk 0:00:48]}  f6 {[%clk 0:00:32]} 29. Kh2 {[%clk 0:00:45]}  Rad8 {[%clk 0:00:29]} 30. Qxd8 {[%clk 0:00:42]}  Rxd8 {[%clk 0:00:30]} 31. Rxd8+ {[%clk 0:00:42]}  Kf7 {[%clk 0:00:31]} 32. Rfd1 {[%clk 0:00:43]}  Qf3 {[%clk 0:00:25]} 33. R1d2 {[%clk 0:00:37]}  Ke7 {[%clk 0:00:21]} 34. Bf2 {[%clk 0:00:30]}  Qf4+ {[%clk 0:00:17]} 35. Kg2 {[%clk 0:00:30]}  Nc8 {[%clk 0:00:07]} 36. R2d7+ {[%clk 0:00:24]}  Ke6 {[%clk 0:00:07]} 37. Rd2 {[%clk 0:00:20]}  Ne7 {[%clk 0:00:06]} 38. Re2+ {[%clk 0:00:13]}  Kf7 {[%clk 0:00:05]} 39. Rd7 {[%clk 0:00:13]}  Kf8 {[%clk 0:00:01]} 40. Rdxe7 {[%clk 0:00:14]} 1-0


[Site "https://www.chess.com"]

[Event "Titled Tuesday Blitz December 27 Late 2022"]
[White "Pershin, Denis"]
[Black "Liu, Casper"]
[WhiteFideId "24165506"]
[BlackFideId "1454153"]
[WhiteElo "2366"]
[BlackElo "2278"]
[Result "0-1"]
[Round "10"]
[TimeControl "180+2"]
[Date "2022.12.27"]
[WhiteClock "0:00:01"]
[BlackClock "0:02:10"]

1. e4 {[%clk 0:00:24]}  g6 {[%clk 0:03:00]} 2. d3 {[%clk 0:00:24]}  Bg7 {[%clk 0:02:57]} 3. Nc3 {[%clk 0:00:25]}  b6 {[%clk 0:02:56]} 4. Be3 {[%clk 0:00:26]}  Bb7 {[%clk 0:02:57]} 5. Qd2 {[%clk 0:00:26]}  c5 {[%clk 0:02:58]} 6. h4 {[%clk 0:00:26]}  h5 {[%clk 0:02:57]} 7. O-O-O {[%clk 0:00:27]}  Nc6 {[%clk 0:02:56]} 8. f4 {[%clk 0:00:27]}  d6 {[%clk 0:02:54]} 9. Nf3 {[%clk 0:00:27]}  Nh6 {[%clk 0:02:54]} 10. Kb1 {[%clk 0:00:24]}  Ng4 {[%clk 0:02:54]} 11. Bg1 {[%clk 0:00:24]}  b5 {[%clk 0:02:55]} 12. Nxb5 {[%clk 0:00:23]}  Rb8 {[%clk 0:02:51]} 13. Nc3 {[%clk 0:00:23]}  Qa5 {[%clk 0:02:49]} 14. d4 {[%clk 0:00:24]}  Ba8 {[%clk 0:02:30]} 15. e5 {[%clk 0:00:18]}  O-O {[%clk 0:02:23]} 16. Bd3 {[%clk 0:00:11]}  dxe5 {[%clk 0:02:18]} 17. dxe5 {[%clk 0:00:11]}  Rfd8 {[%clk 0:02:17]} 18. Qe2 {[%clk 0:00:08]}  Qxc3 {[%clk 0:02:16]} 19. Bb5 {[%clk 0:00:06]}  Rxd1+ {[%clk 0:02:13]} 20. Qxd1 {[%clk 0:00:07]}  Rxb5 {[%clk 0:02:13]} 21. b3 {[%clk 0:00:07]}  Nb4 {[%clk 0:02:12]} 22. Ng5 {[%clk 0:00:01]}  Nd5 {[%clk 0:02:10]} 0-1


[Site "https://www.chess.com"]

[Event "Titled Tuesday Blitz December 27 Late 2022"]
[White "Poliakova, Varvara"]
[Black "Remolar Gallen, Jose"]
[WhiteFideId "13518313"]
[BlackFideId "2215187"]
[WhiteElo "2010"]
[BlackElo "2285"]
[Result "1-0"]
[Round "10"]
[TimeControl "180+2"]
[Date "2022.12.27"]
[WhiteClock "0:00:36"]
[BlackClock "0:00:02"]

1. e4 {[%clk 0:02:59]}  c5 {[%clk 0:02:58]} 2. f4 {[%clk 0:02:57]}  d6 {[%clk 0:02:57]} 3. Nf3 {[%clk 0:02:57]}  g6 {[%clk 0:02:56]} 4. d3 {[%clk 0:02:58]}  Bg7 {[%clk 0:02:56]} 5. g3 {[%clk 0:02:57]}  Nc6 {[%clk 0:02:57]} 6. Bg2 {[%clk 0:02:58]}  Bg4 {[%clk 0:02:55]} 7. O-O {[%clk 0:02:56]}  e6 {[%clk 0:02:55]} 8. h3 {[%clk 0:02:55]}  Bxf3 {[%clk 0:02:55]} 9. Qxf3 {[%clk 0:02:54]}  Nge7 {[%clk 0:02:55]} 10. Nc3 {[%clk 0:02:52]}  O-O {[%clk 0:02:53]} 11. g4 {[%clk 0:02:45]}  Nd4 {[%clk 0:02:52]} 12. Qf2 {[%clk 0:02:42]}  Rb8 {[%clk 0:02:51]} 13. Be3 {[%clk 0:02:38]}  b5 {[%clk 0:02:49]} 14. f5 {[%clk 0:02:37]}  exf5 {[%clk 0:02:15]} 15. exf5 {[%clk 0:02:38]}  gxf5 {[%clk 0:02:15]} 16. Rae1 {[%clk 0:02:09]}  fxg4 {[%clk 0:02:13]} 17. Nd1 {[%clk 0:01:59]}  Nef5 {[%clk 0:02:01]} 18. hxg4 {[%clk 0:01:57]}  Nxe3 {[%clk 0:01:59]} 19. Nxe3 {[%clk 0:01:58]}  Qg5 {[%clk 0:01:51]} 20. c3 {[%clk 0:01:56]}  Ne6 {[%clk 0:01:49]} 21. Qg3 {[%clk 0:01:56]}  Be5 {[%clk 0:01:47]} 22. Qh3 {[%clk 0:01:56]}  Nf4 {[%clk 0:01:45]} 23. Rxf4 {[%clk 0:01:53]}  Bxf4 {[%clk 0:01:39]} 24. Nd5 {[%clk 0:01:51]}  Rbe8 {[%clk 0:01:29]} 25. Rf1 {[%clk 0:01:48]}  Be5 {[%clk 0:01:24]} 26. Rf5 {[%clk 0:01:45]}  Qg7 {[%clk 0:01:20]} 27. Be4 {[%clk 0:01:42]}  Re6 {[%clk 0:01:18]} 28. Rg5 {[%clk 0:01:15]}  Rg6 {[%clk 0:01:03]} 29. Ne7+ {[%clk 0:01:06]}  Kh8 {[%clk 0:01:02]} 30. Bxg6 {[%clk 0:01:00]}  Bf6 {[%clk 0:00:05]} 31. Rh5 {[%clk 0:00:59]}  fxg6 {[%clk 0:00:04]} 32. Rxh7+ {[%clk 0:00:56]}  Qxh7 {[%clk 0:00:04]} 33. Nxg6+ {[%clk 0:00:56]}  Kg8 {[%clk 0:00:04]} 34. Qxh7+ {[%clk 0:00:56]}  Kxh7 {[%clk 0:00:05]} 35. Nxf8+ {[%clk 0:00:56]}  Kg8 {[%clk 0:00:03]} 36. Ne6 {[%clk 0:00:42]}  Kf7 {[%clk 0:00:03]} 37. Nc7 {[%clk 0:00:40]}  b4 {[%clk 0:00:03]} 38. cxb4 {[%clk 0:00:39]}  cxb4 {[%clk 0:00:04]} 39. b3 {[%clk 0:00:38]}  Kg6 {[%clk 0:00:03]} 40. Kf2 {[%clk 0:00:37]}  Kg5 {[%clk 0:00:02]} 41. Kf3 {[%clk 0:00:38]}  a5 {[%clk 0:00:03]} 42. Nd5 {[%clk 0:00:38]}  Bd4 {[%clk 0:00:02]} 43. Ke4 {[%clk 0:00:36]} 1-0


[Site "https://www.chess.com"]